bitfinex/quotes_ETHUSD_20240618
["timestamp","ask_amount","ask_price","bid_price","bid_amount"]
[1718746997013,7.42198437,3480.6,3480.0,2.87355]
[1718746997923,7.42198437,3480.6,3479.8,2.87371]
[1718746997924,7.0711,3480.6,3480.1,2.8734]
[1718746998256,7.0711,3480.6,3480.4,2.87322]
[1718746998403,7.0711,3480.6,3480.3,2.87331]
[1718746998603,7.0711,3480.6,3480.2,3.0]
[1718746998604,7.0711,3480.6,3480.4,2.87321]
[1718746999914,7.0711,3480.6,3480.5,3.0]
[1718747000529,7.0711,3480.6,3480.5,5.87315]
[1718747000858,0.844,3480.9,3480.5,5.87315]
[1718747001216,0.844,3480.9,3480.6,2.873]
[1718747001416,0.35088437,3481.2,3480.6,2.87305]
[1718747001654,1.11906281,3481.2,3480.6,2.87305]
[1718747001821,0.76817844,3481.2,3480.6,2.87305]
[1718747002023,7.3309,3481.4,3480.6,2.87306]
[1718747002346,7.3309,3481.4,3480.8,2.8729]
[1718747002522,7.68178437,3481.4,3480.7,5.87297]
[1718747002731,7.3309,3481.4,3481.0,2.87273]
[1718747003315,7.3309,3481.4,3480.9,2.87281]
[1718747003316,7.3309,3481.4,3481.1,2.87263]
[1718747003516,7.3309,3481.4,3481.0,2.87273]
[1718747003717,7.3309,3481.4,3481.1,3.0]
[1718747004021,0.844,3481.8,3481.1,3.0]
[1718747004022,6.7504,3481.8,3481.3,2.87242]
[1718747004220,5.10233443,3483.0,3481.3,0.844]
[1718747004221,0.35088437,3482.3,3481.3,0.844]
[1718747004426,0.35088437,3482.3,3481.6,2.87216]
[1718747004623,7.6902,3482.4,3481.6,2.87216]
[1718747004823,6.8462,3482.4,3481.6,2.87216]
[1718747005022,0.71970844,3482.3,3481.6,2.87216]
[1718747005322,6.8462,3482.4,3481.8,2.87207]
[1718747005528,6.8462,3482.4,3481.9,0.844]
[1718747006355,6.8462,3482.4,3481.8,2.87207]
[1718747007045,6.8462,3482.4,3481.9,2.87197]
[1718747007248,6.8462,3482.4,3481.9,3.71597]
[1718747010067,0.35088437,3482.9,3482.0,6.830704]
[1718747010359,7.2726,3482.8,3482.0,6.830714]
[1718747010655,7.2726,3482.8,3482.1,0.844]
[1718747010841,7.2726,3482.8,3482.2,2.87168]
[1718747011047,7.2726,3482.8,3482.4,2.87153]
[1718747011224,7.2726,3482.8,3482.5,2.87148]
[1718747011427,0.35088437,3483.2,3482.5,2.87143]
[1718747011428,8.0225,3483.2,3482.5,2.87143]
[1718747011754,8.0225,3483.2,3482.6,1.725]
[1718747011755,8.85983844,3483.2,3482.6,1.725]
[1718747012631,8.01583844,3483.2,3482.6,1.725]
[1718747013235,7.1785,3483.2,3482.7,1.725]
[1718747014225,7.1785,3483.2,3482.6,1.725]
[1718747014467,7.1785,3483.2,3482.6,4.5964]
[1718747015437,7.1785,3483.2,3482.6,1.725]
[1718747024447,7.1785,3483.2,3482.8,1.725]
[1718747030757,7.0368,3483.7,3482.9,2.569]
[1718747031094,7.0368,3483.7,3483.1,0.844]
[1718747031699,0.35088437,3483.6,3483.1,0.844]
[1718747033203,7.0368,3483.7,3483.1,0.844]
[1718747033862,7.0368,3483.7,3483.0,2.569]
[1718747034072,0.35088437,3483.6,3483.2,0.844]
[1718747034277,0.35088437,3483.6,3483.1,3.0]
[1718747034615,0.35088437,3483.6,3483.1,3.4725]
[1718747035313,7.0368,3483.7,3483.1,3.4725]
[1718747036407,0.35088437,3483.6,3483.1,3.4725]
[1718747040491,0.35088437,3483.6,3483.1,0.4725]
[1718747040811,0.35088437,3484.0,3483.2,4.59586]
[1718747040979,0.35088437,3484.0,3483.4,1.725]
[1718747042805,0.35088437,3484.0,3483.4,4.725]
[1718747043500,6.9114,3484.1,3483.4,4.725]
[1718747043899,6.9114,3484.1,3483.4,1.725]
[1718747044544,0.35088437,3484.0,3483.4,1.725]
[1718747046721,6.9114,3484.1,3483.4,1.725]
[1718747047633,0.35088437,3484.0,3483.4,1.725]
[1718747048643,6.9114,3484.1,3483.4,2.569]
[1718747048821,6.9114,3484.1,3483.5,3.0]
[1718747049321,6.9114,3484.1,3483.4,2.569]
[1718747049498,6.9114,3484.1,3483.3,1.725]
[1718747049698,0.35088437,3484.0,3483.5,3.0]
[1718747050528,6.9114,3484.1,3483.4,0.844]
[1718747050732,6.9114,3484.1,3483.3,1.725]
[1718747050932,6.9114,3484.1,3483.4,0.844]
[1718747051401,7.26228437,3484.1,3483.4,0.844]
[1718747051602,8.07291281,3484.1,3483.4,0.844]
[1718747051924,7.72202844,3484.1,3483.4,2.569]
[1718747052130,6.9114,3484.1,3483.2,1.725]
[1718747052336,6.9114,3484.1,3483.6,1.725]
[1718747053636,7.7554,3484.1,3483.7,1.725]
[1718747053838,8.91691281,3484.1,3483.2,1.725]
[1718747054548,8.07291281,3484.1,3483.2,1.725]
[1718747054847,0.844,3484.0,3483.2,1.725]
[1718747055013,0.844,3484.0,3483.1,2.569]
[1718747055242,0.844,3484.0,3483.3,1.725]
[1718747055743,8.91691281,3484.1,3483.3,1.725]
[1718747056106,8.91691281,3484.1,3483.2,1.725]
[1718747056508,8.91691281,3484.1,3483.2,2.569]
[1718747057335,0.35088437,3483.8,3483.2,1.725]
[1718747057705,0.35088437,3483.6,3483.2,1.725]
[1718747058540,0.35088437,3483.6,3483.2,0.844]
[1718747058745,0.35088437,3483.6,3483.2,0.794]
[1718747061431,7.3692,3483.5,3483.0,1.725]
[1718747061622,7.3692,3483.5,3483.1,0.844]
[1718747062070,7.3692,3483.5,3483.3,0.844]
[1718747062250,7.3692,3483.5,3483.1,0.844]
[1718747064179,0.35088437,3484.0,3483.3,0.844]
[1718747064476,7.0242,3483.9,3483.3,0.844]
[1718747065249,0.35088437,3483.7,3483.2,1.725]
[1718747065426,0.35088437,3483.7,3483.2,0.844]
[1718747067549,7.0242,3483.9,3483.3,1.725]
[1718747070222,7.76170844,3483.9,3483.3,1.725]
[1718747070421,7.0242,3483.9,3483.3,1.725]
[1718747071763,7.0242,3483.9,3483.2,1.725]
[1718747072121,7.0242,3483.9,3483.2,2.569]
[1718747074436,7.0242,3483.9,3483.1,1.725]
[1718747074641,7.0242,3483.9,3483.3,1.725]
[1718747080200,0.35088437,3484.1,3483.3,2.569]
[1718747080375,7.2891,3484.2,3483.3,2.569]
[1718747080717,7.2891,3484.2,3483.5,1.725]
[1718747084805,0.844,3484.1,3483.5,1.725]
[1718747085024,0.844,3484.1,3483.4,1.725]
[1718747085025,0.35088437,3484.1,3483.4,1.725]
[1718747085317,0.844,3483.9,3483.4,1.725]
[1718747085535,7.0659,3483.8,3483.1,7.33]
[1718747086222,7.0659,3483.8,3483.2,1.725]
[1718747088619,0.35088437,3483.5,3482.9,1.725]
[1718747089191,0.35088437,3483.5,3482.9,2.569]
[1718747090528,0.35088437,3483.5,3482.9,1.725]
[1718747090694,0.35088437,3483.5,3482.9,0.844]
[1718747090695,1.16322181,3483.5,3482.9,0.844]
[1718747091526,7.1025,3483.4,3482.6,7.33]
[1718747091705,7.9465,3483.4,3482.6,7.33]
[1718747092204,7.1025,3483.4,3482.7,0.844]
[1718747095549,7.1025,3483.4,3482.3,13.20166]
[1718747095748,7.1025,3483.4,3482.5,0.844]
[1718747095935,7.1025,3483.4,3482.6,0.55]
[1718747098011,7.9465,3483.4,3482.6,0.55]
[1718747098219,7.9465,3483.4,3482.5,1.394]
[1718747098858,7.9465,3483.4,3482.5,4.394]
[1718747099013,7.1025,3483.4,3482.5,1.394]
[1718747099209,7.9465,3483.4,3482.6,3.0]
[1718747099440,7.9465,3483.4,3482.5,1.394]
[1718747099644,8.77623844,3483.4,3482.5,0.55]
[1718747099910,0.35088437,3483.0,3482.4,3.0]
[1718747100137,0.35088437,3483.0,3482.3,0.844]
[1718747100338,7.3372,3482.9,3482.0,3.0]
[1718747100544,7.3372,3482.9,3482.3,0.844]
[1718747102447,7.3372,3482.9,3482.1,2.87179]
[1718747102646,7.3372,3482.9,3482.3,0.844]
[1718747108942,7.3372,3482.9,3482.4,0.844]
[1718747109190,7.3372,3482.9,3482.4,1.270573]
[1718747109554,7.3372,3482.9,3482.4,0.426573]
[1718747109757,7.3372,3482.9,3482.4,0.844]
[1718747110476,7.3372,3482.9,3482.4,0.838]
[1718747110669,7.3372,3482.9,3482.5,1.725]
[1718747119621,0.35088437,3483.3,3482.6,6.4202]
[1718747119793,0.35088437,3483.3,3482.6,2.569]
[1718747131007,0.35088437,3483.3,3482.6,5.44041]
[1718747131728,0.35088437,3483.3,3482.7,0.05319013]
[1718747132811,0.35088437,3483.3,3482.8,3.8512]
[1718747133007,0.35088437,3483.3,3482.9,0.04929719]
[1718747136254,0.35088437,3483.3,3482.6,5.44041]
[1718747136559,0.35088437,3483.3,3482.7,0.03222867]
[1718747136728,0.35088437,3483.3,3482.7,0.04866724]
[1718747138050,0.35088437,3483.3,3482.7,2.91998724]
[1718747138551,0.35088437,3483.3,3482.8,0.844]
[1718747138757,0.35088437,3483.3,3482.8,5.44022]
[1718747139062,7.0944,3483.6,3483.0,2.87108]
[1718747139415,7.0944,3483.6,3483.1,0.04859674]
[1718747139625,7.0944,3483.6,3482.9,4.59614]
[1718747139852,0.35088437,3483.5,3483.0,0.04859674]
[1718747140650,7.0944,3483.6,3483.0,2.91967674]
[1718747141661,0.35088437,3483.5,3483.0,2.91967674]
[1718747143351,0.35088437,3483.5,3483.0,0.04859674]
[1718747143735,7.0944,3483.6,3483.0,0.04859674]
[1718747144139,7.0944,3483.6,3483.0,4.64466674]
[1718747144820,7.44528437,3483.6,3483.0,4.64466674]
[1718747145132,7.0944,3483.6,3483.0,5.48866674]
[1718747145942,7.51448437,3483.9,3483.2,1.725]
[1718747146324,7.51448437,3483.9,3483.3,0.04686928]
[1718747147239,7.51448437,3483.9,3483.3,4.64269928]
[1718747148357,7.51448437,3483.9,3483.3,5.86357521]
[1718747150423,7.51448437,3483.9,3483.3,4.64269928]
[1718747150833,0.35088437,3484.4,3483.5,4.59561]
[1718747151159,0.844,3484.3,3483.5,4.59561]
[1718747151328,0.844,3484.3,3483.6,0.04686928]
[1718747154450,0.35088437,3484.4,3483.6,0.04686928]
[1718747154648,0.844,3484.3,3483.6,0.04686928]
[1718747156161,0.35088437,3484.6,3483.7,1.725]
[1718747156341,0.35088437,3484.6,3483.9,4.59532]
[1718747156523,0.35088437,3484.8,3483.9,4.59532]
[1718747156726,0.844,3484.7,3484.0,0.04640563]
[1718747156940,1.94730281,3484.8,3484.1,1.725]
[1718747157484,1.94730281,3484.8,3484.2,0.04640192]
[1718747157788,1.10330281,3484.8,3484.2,0.04640192]
[1718747158138,1.94730281,3484.8,3484.2,0.04640192]
[1718747158377,1.94730281,3484.8,3484.2,1.77140192]
[1718747159380,1.94730281,3484.8,3484.2,0.04640192]
[1718747159580,1.94730281,3484.8,3484.0,1.725]
[1718747159901,1.19488437,3484.8,3484.0,1.725]
[1718747160060,1.19488437,3484.8,3484.1,0.04636483]
[1718747161198,0.35088437,3484.8,3484.1,0.04636483]
[1718747161400,1.19488437,3484.8,3484.1,0.04636483]
[1718747161694,0.35088437,3484.8,3484.1,0.04636483]
[1718747162208,0.35088437,3484.8,3484.2,2.27356848]
[1718747162664,0.35088437,3484.8,3484.3,0.04636483]
[1718747162859,7.1733,3484.9,3484.3,0.04636483]
[1718747165108,0.35088437,3485.0,3484.4,2.569]
[1718747165412,9.85543162,3486.3,3484.6,0.844]
[1718747165413,0.35088437,3485.4,3484.6,0.844]
[1718747165624,7.0964,3485.5,3484.8,0.844]
[1718747165907,7.0964,3485.5,3484.9,0.04617202]
[1718747166804,0.844,3485.7,3484.9,0.04617202]
[1718747166958,1.19488437,3485.8,3484.9,0.04617202]
[1718747167165,2.05837281,3485.8,3484.9,0.04617202]
[1718747167979,1.70748844,3485.8,3484.9,0.04617202]
[1718747168300,2.05837281,3485.8,3484.9,0.04617202]
[1718747168813,0.35088437,3485.8,3484.9,0.04617202]
[1718747169164,1.19488437,3485.8,3484.9,0.04617202]
[1718747169601,7.44,3485.9,3485.1,1.725]
[1718747170004,0.35088437,3486.0,3485.3,1.725]
[1718747170294,0.35088437,3486.0,3485.4,2.28262]
[1718747170465,1.19488437,3486.0,3485.5,0.04586426]
[1718747171005,0.35088437,3486.0,3485.5,0.04586426]
[1718747171191,1.19488437,3486.0,3485.5,0.04586426]
[1718747171368,1.19488437,3486.0,3485.3,1.725]
[1718747171940,1.19488437,3486.0,3485.4,0.04586426]
[1718747173074,1.19488437,3486.0,3485.2,1.725]
[1718747173286,0.35088437,3486.0,3485.3,0.04586426]
[1718747173986,0.844,3485.9,3485.3,0.04586426]
[1718747174217,0.35088437,3486.0,3485.3,0.04586426]
[1718747174421,1.19488437,3486.0,3485.3,0.04586426]
[1718747176444,1.19488437,3486.0,3485.3,0.10324197]
[1718747179635,1.19488437,3486.0,3485.3,0.04586426]
[1718747181684,0.35088437,3486.0,3485.3,0.04586426]
[1718747181842,0.35088437,3485.6,3485.3,0.04586426]
[1718747182161,0.35088437,3485.6,3485.1,9.055]
[1718747182376,0.35088437,3485.6,3485.4,0.04562709]
[1718747182543,0.35088437,3485.6,3485.1,9.055]
[1718747182734,0.35088437,3485.6,3485.5,0.04562709]
[1718747182937,0.35088437,3485.6,3485.1,9.055]
[1718747183270,0.35088437,3485.6,3485.5,0.04562709]
[1718747183475,0.35088437,3485.6,3485.1,9.055]
[1718747183977,0.35088437,3485.6,3485.2,0.04562709]
[1718747185976,0.35088437,3485.4,3485.2,0.04562709]
[1718747188179,0.35088437,3485.4,3484.9,0.844]
[1718747188375,0.35088437,3485.4,3485.3,0.04539357]
[1718747188553,0.35088437,3485.4,3484.9,0.844]
[1718747188753,0.35088437,3485.4,3485.3,0.04539357]
[1718747188974,0.35088437,3485.4,3484.9,0.844]
[1718747189645,0.35088437,3485.4,3485.0,0.04539357]
[1718747195785,0.35088437,3485.4,3485.0,0.59379993]
[1718747196207,0.35088437,3485.4,3485.0,0.04539357]
[1718747200430,0.35088437,3485.4,3485.1,3.8512]
[1718747200588,0.35088437,3485.4,3485.0,0.04539357]
[1718747200796,0.35088437,3485.4,3484.9,0.844]
[1718747201628,0.35088437,3485.4,3485.0,0.04550844]
[1718747202330,0.35088437,3485.4,3485.0,1.26600628]
[1718747205232,0.35088437,3485.4,3485.0,0.04550844]
[1718747206497,0.35088437,3485.4,3485.1,0.844]
[1718747206845,0.35088437,3485.4,3485.2,0.04560851]
[1718747206991,6.9099,3485.6,3485.2,0.04560851]
[1718747207198,6.9099,3485.6,3485.0,2.86943]
[1718747207498,0.35088437,3485.8,3485.2,2.86926]
[1718747207719,0.35088437,3485.8,3485.3,0.04560851]
[1718747207919,0.35088437,3485.8,3485.2,2.86926]
[1718747208135,0.35088437,3485.8,3485.3,0.04560851]
[1718747208317,0.35088437,3485.8,3485.2,2.86926]
[1718747208501,0.35088437,3485.8,3485.3,0.04560851]
[1718747208724,0.35088437,3485.8,3485.2,4.1682292]
[1718747208935,0.35088437,3485.8,3485.4,0.04560851]
[1718747209234,0.35088437,3485.8,3485.2,4.1682292]
[1718747209460,0.35088437,3485.8,3485.5,0.04560851]
[1718747209599,0.35088437,3485.8,3485.2,4.1682292]
[1718747209794,0.35088437,3485.8,3485.3,0.89218004]
[1718747210055,0.35088437,3485.8,3485.3,0.93778855]
[1718747211149,0.35088437,3486.0,3485.4,4.59409]
[1718747211327,0.35088437,3486.0,3485.5,0.92451386]
[1718747211636,0.35088437,3486.0,3485.5,0.97012237]
[1718747214257,0.35088437,3486.0,3485.5,0.04560851]
[1718747214404,0.35088437,3486.0,3485.5,3.89680851]
[1718747215514,7.22118437,3486.2,3485.6,0.844]
[1718747215706,6.8703,3486.2,3485.7,0.04555292]
[1718747216073,7.52978437,3486.5,3485.8,1.725]
[1718747216354,7.52978437,3486.5,3485.8,2.97520326]
[1718747216642,0.35088437,3486.3,3485.8,2.97520326]
[1718747217755,0.35088437,3486.6,3485.8,2.97520326]
[1718747217911,0.35088437,3486.6,3485.8,5.48332292]
[1718747219148,0.35088437,3486.6,3486.0,1.725]
[1718747219324,1.19488437,3486.8,3486.0,1.725]
[1718747219513,2.01856281,3486.8,3486.0,1.725]
[1718747219715,1.19488437,3486.8,3486.0,1.725]
[1718747220021,0.35088437,3486.6,3486.1,0.04543062]
[1718747221564,0.35088437,3486.6,3486.1,3.89663062]
[1718747222423,1.19488437,3486.8,3486.1,3.89663062]
[1718747224760,0.35088437,3486.6,3486.1,3.89663062]
[1718747227245,0.35088437,3486.6,3486.1,4.83006268]
[1718747234079,0.35088437,3486.8,3486.1,5.67406268]
[1718747241779,0.35088437,3486.6,3486.1,5.67406268]
[1718747241949,0.35088437,3486.6,3486.1,4.74063062]
[1718747243504,0.35088437,3486.8,3486.1,4.74063062]
[1718747244353,0.35088437,3486.6,3486.1,4.74063062]
[1718747244980,0.35088437,3486.6,3486.1,3.89663062]
[1718747245189,0.35088437,3486.8,3486.2,0.56216306]
[1718747245561,0.35088437,3486.8,3486.3,0.04490448]
[1718747246286,0.35088437,3486.8,3486.1,6.4202]
[1718747246492,0.35088437,3486.8,3486.4,0.04490448]
[1718747246675,0.35088437,3486.8,3486.1,6.4202]
[1718747246991,0.35088437,3486.8,3486.5,0.04490448]
[1718747247223,0.35088437,3486.8,3486.1,6.4202]
[1718747247384,0.35088437,3486.8,3486.1,5.5762]
[1718747247588,0.35088437,3486.8,3486.2,0.04490448]
[1718747248798,0.35088437,3486.8,3486.2,0.69141493]
[1718747254594,7.7243,3487.1,3486.2,0.69141493]
[1718747254595,0.35088437,3487.0,3486.4,1.725]
[1718747254999,0.35088437,3487.0,3486.5,0.04489337]
[1718747257297,0.35088437,3487.0,3486.5,0.37093375]
[1718747258548,0.35088437,3487.0,3486.6,3.8512]
[1718747258929,0.35088437,3487.0,3486.7,0.04485263]
[1718747259615,0.35088437,3487.0,3486.7,0.88885263]
[1718747259810,0.35088437,3487.0,3486.7,0.04485263]
[1718747260016,0.35088437,3487.0,3486.8,0.4222093]
[1718747260418,0.35088437,3487.0,3486.9,0.04485263]
[1718747262020,7.64418437,3487.0,3486.9,0.04485263]
[1718747262456,3.15465,3487.9,3486.9,0.04485263]
[1718747262457,0.35088437,3487.4,3486.9,0.04485263]
[1718747263015,0.35088437,3487.4,3487.0,0.04485263]
[1718747263219,0.35088437,3487.6,3487.0,0.04485263]
[1718747263560,0.35088437,3487.4,3487.1,0.04485263]
[1718747263922,0.35088437,3487.4,3486.7,1.725]
[1718747264258,0.35088437,3487.4,3486.8,2.36702]
[1718747264439,0.35088437,3487.4,3486.9,0.04485263]
[1718747272280,7.74518437,3487.7,3486.9,0.04485263]
[1718747272443,7.74518437,3487.7,3487.1,1.725]
[1718747272646,7.74518437,3487.7,3487.2,0.04446746]
[1718747277209,0.35088437,3487.9,3487.2,0.04446746]
[1718747277565,7.0804,3487.8,3487.2,0.04446746]
[1718747277771,7.0804,3487.8,3487.3,0.67902547]
[1718747278084,7.0804,3487.8,3487.4,0.04443784]
[1718747279220,0.35088437,3487.9,3487.4,0.04443784]
[1718747279692,1.19488437,3487.9,3487.4,0.04443784]
[1718747279881,0.35088437,3487.9,3487.5,3.8512]
[1718747280083,0.35088437,3487.9,3487.6,3.501819]
[1718747285505,0.35088437,3488.3,3487.7,6.4202]
[1718747285686,0.35088437,3488.3,3487.8,1.8362019]
[1718747285889,0.35088437,3488.3,3487.9,0.04435267]
[1718747286593,0.35088437,3488.5,3487.9,0.04435267]
[1718747287313,0.35088437,3488.3,3488.0,0.844]
[1718747287519,0.35088437,3488.3,3488.1,0.04398989]
[1718747288203,0.35088437,3488.5,3488.1,0.04398989]
[1718747288637,0.35088437,3488.3,3488.1,0.04398989]
[1718747288843,0.35088437,3488.3,3488.1,0.36957715]
[1718747292189,0.35088437,3489.0,3488.2,6.4202]
[1718747292482,0.35088437,3489.0,3488.4,0.844]
[1718747292927,0.35088437,3489.0,3488.5,0.04363826]
[1718747294057,0.35088437,3489.0,3488.6,0.04363826]
[1718747294260,0.44947119,3489.7,3488.3,3.02646633]
[1718747294261,7.0213,3489.5,3488.9,0.844]
[1718747294561,7.0213,3489.5,3489.0,1.76850134]
[1718747294762,7.37218437,3489.7,3489.0,1.76850134]
[1718747295355,7.37218437,3489.7,3489.1,2.18847213]
[1718747295731,7.37218437,3489.7,3489.2,0.04348654]
[1718747295929,0.35088437,3490.3,3489.6,1.725]
[1718747296240,0.35088437,3490.3,3489.8,2.569]
[1718747296768,0.35088437,3490.3,3489.9,0.04337555]
[1718747297452,7.0213,3490.5,3489.9,0.04337555]
[1718747297453,0.35088437,3490.5,3490.2,0.844]
[1718747297846,0.35088437,3490.7,3490.3,0.04337555]
[1718747298370,0.35088437,3491.3,3490.6,1.725]
[1718747298676,0.35088437,3491.5,3491.0,0.844]
[1718747299033,0.35088437,3491.5,3491.1,0.04295397]
[1718747299227,0.35088437,3491.8,3491.1,1.76795397]
[1718747299456,0.35088437,3491.8,3491.1,4.58941]
[1718747299656,0.35088437,3491.8,3491.2,0.04295397]
[1718747300482,0.35088437,3491.8,3491.2,1.76795397]
[1718747300685,0.35088437,3491.8,3491.3,0.844]
[1718747300975,0.35088437,3491.8,3491.2,1.76795397]
[1718747300976,0.35088437,3491.8,3491.4,0.04239229]
[1718747301267,0.35088437,3491.8,3491.2,2.569]
[1718747301575,0.35088437,3491.8,3491.3,0.04119073]
[1718747301741,7.2648,3492.1,3491.3,0.04119073]
[1718747301742,0.35088437,3491.4,3491.3,0.04119073]
[1718747301936,0.35088437,3491.6,3490.8,0.844]
[1718747302135,0.35088437,3491.5,3491.0,1.725]
[1718747302385,8.1088,3492.1,3490.9,0.04109101]
[1718747302386,0.35088437,3491.6,3490.9,0.04109101]
[1718747302532,0.35088437,3491.6,3490.8,0.43581587]
[1718747302738,0.35088437,3491.6,3491.0,0.88509101]
[1718747302969,0.35088437,3491.3,3491.0,0.844]
[1718747303161,0.35088437,3491.3,3490.7,1.725]
[1718747303377,0.35088437,3491.3,3491.1,0.04111686]
[1718747303545,0.35088437,3491.3,3491.0,0.844]
[1718747303746,0.35088437,3491.3,3490.5,10.1949]
[1718747303747,0.35088437,3488.8,3488.7,0.89129232]
[1718747303972,0.03332008,3488.8,3488.7,0.89129232]
[1718747304291,0.03332008,3488.8,3488.7,0.92694905]
[1718747304880,0.87732008,3488.8,3488.7,0.92694905]
[1718747305083,0.81151209,3488.8,3488.7,0.92694905]
[1718747305237,1.65551209,3488.8,3488.7,0.89129232]
[1718747305437,0.81151209,3488.8,3488.7,0.89129232]
[1718747308347,0.03332008,3488.8,3488.7,0.89129232]
[1718747308777,0.03332008,3488.8,3488.7,0.92320137]
[1718747309290,7.0233,3489.7,3488.7,0.03190905]
[1718747309291,0.03332008,3489.1,3488.7,0.03190905]
[1718747309498,0.03332008,3488.8,3487.9,2.86704]
[1718747309774,0.03332008,3488.8,3488.0,0.03190905]
[1718747310441,0.03332008,3488.6,3488.0,0.03190905]
[1718747310641,0.03332008,3488.7,3488.0,0.03190905]
[1718747310880,2.015,3489.6,3488.0,0.03190905]
[1718747310881,0.03332008,3488.9,3488.0,0.03190905]
[1718747311186,0.03332008,3488.7,3488.1,0.03190905]
[1718747311680,0.03332008,3488.7,3488.2,0.03190905]
[1718747311875,0.03332008,3488.7,3487.9,0.3]
[1718747312080,0.03332008,3488.7,3488.0,0.03282103]
[1718747312762,0.03332008,3488.9,3488.0,2.89977103]
[1718747312949,0.03332008,3488.9,3488.1,0.6199851]
[1718747313285,0.03332008,3488.7,3488.2,0.03282842]
[1718747313581,0.03332008,3488.7,3488.2,0.70150777]
[1718747317554,0.03332008,3488.3,3488.2,0.03282842]
[1718747318248,0.03332008,3488.3,3488.2,0.03367167]
[1718747318645,0.03332008,3488.3,3487.7,5.86719]
[1718747318850,0.03332008,3488.3,3487.8,0.873456]
[1718747319057,0.03332008,3488.3,3487.9,0.03367167]
[1718747320195,0.03332008,3488.9,3488.2,2.8668]
[1718747320396,0.03332008,3488.9,3488.2,0.29004717]
[1718747320568,0.03332008,3489.1,3488.3,2.90028194]
[1718747321101,0.03332008,3489.1,3488.5,2.86655]
[1718747321252,0.03332008,3489.1,3488.5,3.47223791]
[1718747321655,0.03332008,3489.1,3488.6,0.03364194]
[1718747322293,0.03332008,3489.3,3488.7,2.86637]
[1718747322505,0.03332008,3489.3,3488.8,0.42195816]
[1718747322709,0.03332008,3489.3,3488.9,0.03364194]
[1718747322887,0.03332008,3489.3,3488.8,0.42195816]
[1718747323085,0.03332008,3489.3,3488.9,0.03364194]
[1718747323303,0.03332008,3489.3,3488.8,0.42195816]
[1718747323611,0.03332008,3489.3,3488.9,0.36247476]
[1718747323917,0.03332008,3489.3,3488.9,0.03364194]
[1718747324119,0.03332008,3489.3,3488.6,2.86646]
[1718747324415,0.03332008,3489.3,3488.7,3.03364194]
[1718747327376,0.03332008,3489.3,3488.7,0.03364194]
[1718747333330,0.03332008,3489.3,3488.7,2.89997194]
[1718747333517,0.03332008,3489.3,3488.8,0.93721299]
[1718747333832,0.03332008,3489.3,3488.9,0.03344614]
[1718747334235,0.03332008,3489.3,3488.5,0.60568791]
[1718747334405,0.03332008,3489.3,3489.0,0.03344614]
[1718747334607,0.03332008,3489.3,3488.5,0.60568791]
[1718747334808,0.03332008,3489.3,3489.1,0.03344614]
[1718747335008,0.03332008,3489.3,3488.6,1.58546133]
[1718747335227,0.03332008,3489.3,3489.2,0.03344614]
[1718747335445,0.03332008,3489.3,3488.6,1.58546133]
[1718747335603,0.03332008,3489.3,3489.2,0.03344614]
[1718747335943,0.03332008,3489.3,3489.2,0.03339074]
[1718747336141,0.03332008,3489.3,3488.6,1.58546133]
[1718747336444,0.03332008,3489.3,3488.7,0.49193687]
[1718747336817,7.0107,3489.2,3488.7,0.49193687]
[1718747337142,0.03332008,3489.3,3488.7,0.49193687]
[1718747339226,0.03332008,3489.3,3488.7,0.03339074]
[1718747339537,0.03332008,3489.3,3488.4,3.0]
[1718747339737,0.03332008,3489.3,3488.5,0.03339074]
[1718747340315,0.03332008,3489.1,3488.5,0.03339074]
[1718747340920,6.83442008,3489.1,3488.5,0.03339074]
[1718747341120,6.83442008,3489.1,3488.5,1.06972981]
[1718747341561,0.03332008,3488.9,3488.5,1.06972981]
[1718747343168,0.03332008,3488.9,3488.5,0.03339074]
[1718747343777,0.03332008,3488.9,3488.6,0.03339074]
[1718747344259,0.03332008,3488.9,3487.9,3.0]
[1718747344260,0.03332008,3488.9,3488.2,3.8336]
[1718747344568,0.03332008,3488.9,3488.7,0.03339074]
[1718747344745,0.03332008,3488.9,3488.3,3.0]
[1718747344952,0.03332008,3488.9,3488.4,0.71675074]
[1718747345869,0.03332008,3488.9,3488.4,0.03339074]
[1718747346284,2.015,3490.1,3487.5,0.04935078]
[1718747346285,0.03332008,3487.6,3487.5,0.04935078]
[1718747346450,0.03332008,3487.6,3486.3,0.24807254]
[1718747346631,0.03332008,3487.6,3486.4,0.94096821]
[1718747346981,0.03332008,3487.6,3486.0,1.60492431]
[1718747347130,0.03332008,3487.6,3486.4,2.015]
[1718747349284,0.03332008,3487.6,3486.5,2.04540139]
[1718747349582,0.03332008,3487.6,3486.6,0.20454014]
[1718747349875,0.03332008,3487.6,3486.5,0.03040139]
[1718747350092,0.03332008,3487.3,3486.4,2.015]
[1718747350382,0.03332008,3487.3,3486.3,3.0]
[1718747350588,0.03332008,3487.3,3486.2,2.015]
[1718747350589,0.03332008,3487.3,3486.5,0.03041988]
[1718747350772,0.03332008,3487.3,3486.4,0.35941949]
[1718747350958,0.03332008,3487.3,3486.6,0.03042357]
[1718747351145,0.03332008,3487.3,3486.3,2.015]
[1718747351366,0.03332008,3487.3,3486.4,0.03042357]
[1718747351884,3.0,3488.8,3486.4,0.03042357]
[1718747351885,0.03332008,3487.0,3486.4,0.03042357]
[1718747352190,0.03332008,3486.8,3486.0,3.24683386]
[1718747352373,0.03332008,3486.8,3486.5,0.03044575]
[1718747352550,0.03332008,3486.8,3486.0,3.24683386]
[1718747352750,0.03332008,3486.8,3486.1,0.03044575]
[1718747352949,0.03332008,3486.8,3486.2,0.61872796]
[1718747353354,0.03332008,3486.8,3486.3,0.03044575]
[1718747353749,0.03332008,3486.8,3485.6,0.29658176]
[1718747354091,0.03332008,3486.8,3485.7,0.03044575]
[1718747354793,0.03332008,3486.6,3485.7,0.03044575]
[1718747357955,0.03332008,3486.4,3485.7,0.03044575]
[1718747359969,0.03332008,3486.4,3485.9,2.86869]
[1718747360378,0.03332008,3486.4,3486.0,0.03199481]
[1718747360721,0.03332008,3486.4,3485.9,2.86869]
[1718747361234,0.03332008,3486.4,3486.0,0.03199481]
[1718747361596,0.03332008,3486.4,3485.9,2.86869]